Workbook

Sheet Classsificació
A1: COPA BOTIFARRA SANT MAURE'15 | AI1: 2016 començar més d'hora!!!
A2: 16 gener 2015
L4: CLASSIFICACIÓ | P4: RONDA 1 | S4: RONDA 2 | V4: RONDA 3 | Y4: RONDA 4 | AB4: RONDA 5 | AE4: FINAL
B5: Equip | C5: Jugador | D5: Partits | L5: Premi | M5: Diferència | N5: Favor | O5: Contra | P5: Premi | Q5: Favor | R5: Contra | S5: Premi | T5: Favor | U5: Contra | V5: Premi | W5: Favor | X5: Contra | Y5: Premi | Z5: Favor | AA5: Contra | AB5: Premi | AC5: Favor | AD5: Contra | AE5: Premi | AF5: Favor | AG5: Contra | AR5: RONDA 1 | AT5: RONDA 2 | AV5: RONDA 3 | AX5: RONDA 4 | AZ5: RONDA 5 | BC5: RONDA 1 | BE5: RONDA 2 | BG5: RONDA 3 | BI5: RONDA 4 | BK5: RONDA 5
A6: 1 | B6: 1 | C6: Josep Mª Grau | D6: 2 | J6: =RAND() -> 0.9670994733 | K6: =+N6+J6 -> 175.9670995 | L6: =+P6+S6+V6+Y6+AB6+AE6 -> 16 | M6: =+N6-O6 -> 89 | N6: =+Q6+T6+W6+Z6+AC6+AF6 -> 175 | O6: =+R6+U6+X6+AA6+AD6+AG6 -> 86 | P6: 3 | Q6: 47 | R6: 24 | S6: 3 | T6: 24 | U6: 7 | V6: 1 | W6: 13 | X6: 21 | Y6: 3 | Z6: 21 | AA6: 16 | AB6: 3 | AC6: 35 | AD6: 6 | AE6: 3 | AF6: 35 | AG6: 12 | AI6: 7 | AJ6: =+AI6 -> 7 | AK6: =+AI7 -> 11 | AM6: =+AJ6 -> 7 | AN6: =+AK6 -> 11 | AO6: =+AJ7 -> 1 | AP6: =+AK7 -> 6 | AR6: 9 | AS6: 15 | AT6: 8 | AU6: 6 | AV6: 13 | AW6: 1 | AX6: 7 | AY6: 1 | AZ6: 7 | BA6: 11 | BC6: =+AR6*100+AS6 -> 915 | BD6: =+AS6*100+AR6 -> 1509 | BE6: =+AT6*100+AU6 -> 806 | BF6: =+AU6*100+AT6 -> 608 | BG6: =+AV6*100+AW6 -> 1301 | BH6: =+AW6*100+AV6 -> 113 | BI6: =+AX6*100+AY6 -> 701 | BJ6: =+AY6*100+AX6 -> 107 | BK6: =+AZ6*100+BA6 -> 711 | BL6: =+BA6*100+AZ6 -> 1107
A7: =1+A6 -> 2 | B7: 6 | C7: Jordi Marzá | D7: 2 | J7: 0.6612499825 | K7: 231.66125 | L7: 15 | M7: 147 | N7: 231 | O7: 84 | P7: 3 | Q7: 66 | R7: 4 | S7: 0 | T7: 22 | U7: 35 | V7: 3 | W7: 42 | X7: 6 | Y7: 3 | Z7: 31 | AA7: 21 | AB7: 3 | AC7: 35 | AD7: 6 | AE7: 3 | AF7: 35 | AG7: 12 | AI7: 11 | AJ7: =+AI8 -> 1 | AK7: =+AI9 -> 6 | AM7: =+AJ8 -> 4 | AN7: =+AK8 -> 18 | AO7: =+AJ9 -> 13 | AP7: =+AK9 -> 17 | AR7: 8 | AS7: 13 | AT7: 13 | AU7: 7 | AV7: 7 | AW7: 4 | AX7: 4 | AY7: 13 | AZ7: 1 | BA7: 6 | BC7: =+AR7*100+AS7 -> 813 | BD7: =+AS7*100+AR7 -> 1308 | BE7: =+AT7*100+AU7 -> 1307 | BF7: =+AU7*100+AT7 -> 713 | BG7: =+AV7*100+AW7 -> 704 | BH7: =+AW7*100+AV7 -> 407 | BI7: =+AX7*100+AY7 -> 413 | BJ7: =+AY7*100+AX7 -> 1304 | BK7: =+AZ7*100+BA7 -> 106 | BL7: =+BA7*100+AZ7 -> 601
A8: =1+A7 -> 3 | B8: 4 | C8: Jaume Llobet | D8: 3 | J8: 0.9716702145 | K8: 144.9716702 | L8: 13 | M8: 27 | N8: 144 | O8: 117 | P8: 3 | Q8: 23 | R8: 17 | S8: 3 | T8: 24 | U8: 7 | V8: 3 | W8: 21 | X8: 13 | Y8: 1 | Z8: 16 | AA8: 21 | AB8: 3 | AC8: 48 | AD8: 24 | AE8: 0 | AF8: 12 | AG8: 35 | AI8: 1 | AJ8: =+AI10 -> 4 | AK8: =+AI11 -> 18 | AM8: =+AJ10 -> 20 | AN8: =+AK10 -> 5 | AO8: =+AJ11 -> 8 | AP8: =+AK11 -> 15 | AR8: 14 | AS8: 17 | AT8: 1 | AU8: 4 | AV8: 17 | AW8: 18 | AX8: 11 | AY8: 6 | AZ8: 4 | BA8: 18 | BC8: 1417 | BD8: 1714 | BE8: 104 | BF8: 401 | BG8: 1718 | BH8: 1817 | BI8: 1106 | BJ8: 611 | BK8: 418 | BL8: 1804
A9: 4 | B9: 7 | C9: Jordi Sarle | D9: 1 | J9: 0.1514706103 | K9: 161.1514706 | L9: 12 | M9: 36 | N9: 161 | O9: 125 | P9: 3 | Q9: 66 | R9: 4 | S9: 3 | T9: 35 | U9: 22 | V9: 3 | W9: 21 | X9: 13 | Y9: 3 | Z9: 21 | AA9: 16 | AB9: 0 | AC9: 6 | AD9: 35 | AE9: 0 | AF9: 12 | AG9: 35 | AI9: 6 | AJ9: =+AI12 -> 13 | AK9: =+AI13 -> 17 | AM9: =+AJ12 -> 9 | AN9: =+AK12 -> 14 | AO9: =+AJ13 -> 19 | AP9: =+AK13 -> 12 | AR9: 11 | AS9: 5 | AT9: 16 | AU9: 10 | AV9: 11 | AW9: 8 | AX9: 17 | AY9: 20 | AZ9: 13 | BA9: 17 | BC9: =+AR9*100+AS9 -> 1105 | BD9: =+AS9*100+AR9 -> 511 | BE9: =+AT9*100+AU9 -> 1610 | BF9: =+AU9*100+AT9 -> 1016 | BG9: =+AV9*100+AW9 -> 1108 | BH9: =+AW9*100+AV9 -> 811 | BI9: =+AX9*100+AY9 -> 1720 | BJ9: =+AY9*100+AX9 -> 2017 | BK9: =+AZ9*100+BA9 -> 1317 | BL9: =+BA9*100+AZ9 -> 1713
A10: 5 | B10: 18 | C10: Rosa Carles | D10: 3 | J10: 0.7218744566 | K10: 206.7218745 | L10: 11 | M10: 110 | N10: 206 | O10: 96 | P10: 1 | Q10: 17 | R10: 23 | S10: 3 | T10: 65 | U10: 0 | V10: 1 | W10: 32 | X10: 36 | Y10: 3 | Z10: 44 | AA10: 13 | AB10: 3 | AC10: 48 | AD10: 24 | AI10: 4 | AJ10: =+AI14 -> 20 | AK10: =+AI15 -> 5 | AM10: =+AJ14 -> 16 | AN10: =+AK14 -> 2 | AO10: =+AJ15 -> 3 | AP10: =+AK15 -> 10 | AR10: 20 | AS10: 3 | AT10: 14 | AU10: 5 | AV10: 6 | AW10: 20 | AX10: 8 | AY10: 9 | AZ10: 20 | BA10: 5 | BC10: =+AR10*100+AS10 -> 2003 | BD10: =+AS10*100+AR10 -> 320 | BE10: =+AT10*100+AU10 -> 1405 | BF10: =+AU10*100+AT10 -> 514 | BG10: =+AV10*100+AW10 -> 620 | BH10: =+AW10*100+AV10 -> 2006 | BI10: =+AX10*100+AY10 -> 809 | BJ10: =+AY10*100+AX10 -> 908 | BK10: =+AZ10*100+BA10 -> 2005 | BL10: =+BA10*100+AZ10 -> 520
A11: 6 | B11: 11 | C11: Mercè Marinel·lo | D11: 1 | J11: 0.7911967971 | K11: 132.7911968 | L11: 10 | M11: 3 | N11: 132 | O11: 129 | P11: 1 | Q11: 23 | R11: 24 | S11: 3 | T11: 36 | U11: 17 | V11: 3 | W11: 36 | X11: 32 | Y11: 3 | Z11: 31 | AA11: 21 | AB11: 0 | AC11: 6 | AD11: 35 | AI11: 18 | AJ11: =+AI16 -> 8 | AK11: =+AI17 -> 15 | AR11: 1 | AS11: 16 | AT11: 17 | AU11: 11 | AV11: 16 | AW11: 14 | AX11: 18 | AY11: 5 | AZ11: 8 | BA11: 15 | BC11: 116 | BD11: 1601 | BE11: 1711 | BF11: 1117 | BG11: 1614 | BH11: 1416 | BI11: 1805 | BJ11: 518 | BK11: 815 | BL11: 1508
A12: 7 | B12: 8 | C12: Núria Roca | D12: 6 | J12: 0.3144161268 | K12: 176.3144161 | L12: 9 | M12: 47 | N12: 176 | O12: 129 | P12: 3 | Q12: 75 | R12: 0 | S12: 0 | T12: 22 | U12: 35 | V12: 3 | W12: 36 | X12: 32 | Y12: 0 | Z12: 13 | AA12: 44 | AB12: 3 | AC12: 30 | AD12: 18 | AI12: 13 | AJ12: =+AI18 -> 9 | AK12: =+AI19 -> 14 | AR12: 12 | AS12: 18 | AT12: 12 | AU12: 3 | AV12: 10 | AW12: 19 | AX12: 16 | AY12: 3 | AZ12: 9 | BA12: 14 | BC12: 1218 | BD12: 1812 | BE12: 1203 | BF12: 312 | BG12: 1019 | BH12: 1910 | BI12: 1603 | BJ12: 316 | BK12: 914 | BL12: 1409
A13: 8 | B13: 19 | C13: Jesús García | D13: 8 | J13: 0.0260468403 | K13: 117.0260468 | L13: 9 | M13: -31 | N13: 117 | O13: 148 | P13: 0 | Q13: 4 | R13: 66 | S13: 3 | T13: 52 | U13: 19 | V13: 0 | W13: 13 | X13: 60 | Y13: 3 | Z13: 13 | AA13: 2 | AB13: 3 | AC13: 35 | AD13: 1 | AI13: 17 | AJ13: =+AI20 -> 19 | AK13: =+AI21 -> 12 | AR13: 4 | AS13: 10 | AT13: 18 | AU13: 20 | AV13: 9 | AW13: 5 | AX13: 14 | AY13: 19 | AZ13: 19 | BA13: 12 | BC13: 410 | BD13: 1004 | BE13: 1820 | BF13: 2018 | BG13: 905 | BH13: 509 | BI13: 1419 | BJ13: 1914 | BK13: 1912 | BL13: 1219
A14: 9 | B14: 15 | C14: Lluis Serrat | D14: 6 | J14: 0.04914504841 | K14: 134.049145 | L14: 9 | M14: -46 | N14: 134 | O14: 180 | P14: 0 | Q14: 0 | R14: 75 | S14: 0 | T14: 19 | U14: 52 | V14: 3 | W14: 52 | X14: 25 | Y14: 3 | Z14: 33 | AA14: 10 | AB14: 3 | AC14: 30 | AD14: 18 | AI14: 20 | AJ14: =+AI22 -> 16 | AK14: =+AI23 -> 2 | AR14: 6 | AS14: 7 | AT14: 2 | AU14: 15 | AV14: 12 | AW14: 2 | AX14: 10 | AY14: 2 | AZ14: 16 | BA14: 2 | BC14: 607 | BD14: 706 | BE14: 215 | BF14: 1502 | BG14: 1202 | BH14: 212 | BI14: 1002 | BJ14: 210 | BK14: 1602 | BL14: 216
A15: 10 | B15: 13 | C15: Chema Figueras | D15: 4 | J15: 0.7559946321 | K15: 163.7559946 | L15: 8 | M15: 51 | N15: 163 | O15: 112 | P15: 3 | Q15: 75 | R15: 0 | S15: 3 | T15: 35 | U15: 22 | V15: 1 | W15: 13 | X15: 21 | Y15: 1 | Z15: 16 | AA15: 21 | AB15: 0 | AC15: 24 | AD15: 48 | AI15: 5 | AJ15: =+AI24 -> 3 | AK15: =+AI25 -> 10 | AR15: 2 | AS15: 19 | AT15: 19 | AU15: 9 | AV15: 3 | AW15: 15 | AX15: 15 | AY15: 12 | AZ15: 3 | BA15: 10 | BC15: 219 | BD15: 1902 | BE15: 1909 | BF15: 919 | BG15: 315 | BH15: 1503 | BI15: 1512 | BJ15: 1215 | BK15: 310 | BL15: 1003
A16: 11 | B16: 17 | C16: Antoni Terrés | D16: 4 | J16: 0.8825638245 | K16: 137.8825638 | L16: 8 | M16: -18 | N16: 137 | O16: 155 | P16: 3 | Q16: 24 | R16: 23 | S16: 3 | T16: 36 | U16: 17 | V16: 1 | W16: 32 | X16: 36 | Y16: 1 | Z16: 21 | AA16: 31 | AB16: 0 | AC16: 24 | AD16: 48 | AI16: 8 | BC16: 0 | BD16: 0 | BE16: 0 | BF16: 0 | BG16: 0 | BH16: 0 | BI16: 0 | BJ16: 0 | BK16: 0 | BL16: 0
A17: 12 | B17: 20 | C17: Jordi Montiel | D17: 5 | J17: 0.0165796923 | K17: 170.0165797 | L17: 7 | M17: 56 | N17: 170 | O17: 114 | P17: 0 | Q17: 24 | R17: 47 | S17: 3 | T17: 65 | U17: 0 | V17: 3 | W17: 42 | X17: 6 | Y17: 1 | Z17: 21 | AA17: 31 | AB17: 0 | AC17: 18 | AD17: 30 | AI17: 15 | BC17: 0 | BD17: 0 | BE17: 0 | BF17: 0 | BG17: 0 | BH17: 0 | BI17: 0 | BJ17: 0 | BK17: 0 | BL17: 0
A18: 13 | B18: 5 | C18: Josep Minguet | D18: 5 | J18: 0.02967850072 | K18: 162.0296785 | L18: 7 | M18: 46 | N18: 162 | O18: 116 | P18: 1 | Q18: 23 | R18: 24 | S18: 0 | T18: 17 | U18: 36 | V18: 3 | W18: 60 | X18: 13 | Y18: 3 | Z18: 44 | AA18: 13 | AB18: 0 | AC18: 18 | AD18: 30 | AI18: 9 | BC18: 0 | BD18: 0 | BE18: 0 | BF18: 0 | BG18: 0 | BH18: 0 | BI18: 0 | BJ18: 0 | BK18: 0 | BL18: 0
A19: 14 | B19: 12 | C19: Fina Castells | D19: 8 | J19: 0.649978419 | K19: 110.6499784 | L19: 7 | M19: -41 | N19: 110 | O19: 151 | P19: 1 | Q19: 17 | R19: 23 | S19: 0 | T19: 0 | U19: 65 | V19: 0 | W19: 25 | X19: 52 | Y19: 3 | Z19: 33 | AA19: 10 | AB19: 3 | AC19: 35 | AD19: 1 | AI19: 14 | BC19: 0 | BD19: 0 | BE19: 0 | BF19: 0 | BG19: 0 | BH19: 0 | BI19: 0 | BJ19: 0 | BK19: 0 | BL19: 0
A20: 15 | B20: 3 | C20: MªAngels Estévez | D20: 10 | J20: 0.6452995816 | K20: 134.6452996 | L20: 6 | M20: -16 | N20: 134 | O20: 150 | P20: 0 | Q20: 24 | R20: 47 | S20: 0 | T20: 0 | U20: 65 | V20: 3 | W20: 52 | X20: 25 | Y20: 0 | Z20: 2 | AA20: 13 | AB20: 3 | AC20: 56 | AD20: 0 | AI20: 19 | BC20: 0 | BD20: 0 | BE20: 0 | BF20: 0 | BG20: 0 | BH20: 0 | BI20: 0 | BJ20: 0 | BK20: 0 | BL20: 0
A21: 16 | B21: 10 | C21: Josefina Bacardit | D21: 10 | J21: 0.07334131312 | K21: 109.0733413 | L21: 6 | M21: -25 | N21: 109 | O21: 134 | P21: 3 | Q21: 23 | R21: 17 | S21: 0 | T21: 7 | U21: 24 | V21: 0 | W21: 13 | X21: 60 | Y21: 0 | Z21: 10 | AA21: 33 | AB21: 3 | AC21: 56 | AD21: 0 | AI21: 12 | BC21: 0 | BD21: 0 | BE21: 0 | BF21: 0 | BG21: 0 | BH21: 0 | BI21: 0 | BJ21: 0 | BK21: 0 | BL21: 0
A22: 17 | B22: 9 | C22: Marc Vidal | D22: 7 | J22: 0.7467023331 | K22: 126.7467023 | L22: 6 | M22: -60 | N22: 126 | O22: 186 | P22: 0 | Q22: 0 | R22: 75 | S22: 3 | T22: 52 | U22: 19 | V22: 3 | W22: 60 | X22: 13 | Y22: 0 | Z22: 13 | AA22: 44 | AB22: 0 | AC22: 1 | AD22: 35 | AI22: 16 | BC22: 0 | BD22: 0 | BE22: 0 | BF22: 0 | BG22: 0 | BH22: 0 | BI22: 0 | BJ22: 0 | BK22: 0 | BL22: 0
A23: 18 | B23: 14 | C23: Joan Inglada | D23: 7 | J23: 0.5842199123 | K23: 61.58421991 | L23: 6 | M23: -77 | N23: 61 | O23: 138 | P23: 3 | Q23: 24 | R23: 23 | S23: 0 | T23: 17 | U23: 36 | V23: 0 | W23: 6 | X23: 42 | Y23: 3 | Z23: 13 | AA23: 2 | AB23: 0 | AC23: 1 | AD23: 35 | AI23: 2 | BC23: 0 | BD23: 0 | BE23: 0 | BF23: 0 | BG23: 0 | BH23: 0 | BI23: 0 | BJ23: 0 | BK23: 0 | BL23: 0
A24: 19 | B24: 16 | C24: Núria Marimón | D24: 9 | J24: 0.1533072001 | K24: 62.1533072 | L24: 3 | M24: -97 | N24: 62 | O24: 159 | P24: 3 | Q24: 47 | R24: 24 | S24: 0 | T24: 7 | U24: 24 | V24: 0 | W24: 6 | X24: 42 | Y24: 0 | Z24: 2 | AA24: 13 | AB24: 0 | AC24: 0 | AD24: 56 | AI24: 3
A25: 20 | B25: 2 | C25: Montse Nogué | D25: 9 | J25: 0.377255822 | K25: 58.37725582 | L25: 0 | M25: -201 | N25: 58 | O25: 259 | P25: 0 | Q25: 4 | R25: 66 | S25: 0 | T25: 19 | U25: 52 | V25: 0 | W25: 25 | X25: 52 | Y25: 0 | Z25: 10 | AA25: 33 | AB25: 0 | AC25: 0 | AD25: 56 | AI25: 10
A26: 21 | D26: 20 | J26: =RAND() -> 0.155088958 | K26: =+N26+J26 -> 38.15508896 | L26: -20 | M26: =+N26-O26 -> 38 | N26: =+Q26+T26+W26+Z26+AC26+AF26 -> 38 | O26: =+R26+U26+X26+AA26+AD26+AG26 -> 0 | P26: 3 | Q26: 38 | R26: 0
A27: 22 | D27: 20 | J27: 0.5043776707 | K27: 38.50437767 | L27: -20 | M27: 38 | N27: 38 | O27: 0 | P27: 3 | Q27: 38 | R27: 0
A28: 23 | D28: 20 | J28: 0.4331460678 | K28: 38.43314607 | L28: -20 | M28: 38 | N28: 38 | O28: 0 | P28: 3 | Q28: 38 | R28: 0
A29: 24 | D29: 20 | J29: 0.7039697961 | K29: 38.7039698 | L29: -20 | M29: 38 | N29: 38 | O29: 0 | P29: 3 | Q29: 38 | R29: 0
A30: 25 | D30: 20 | J30: 0.5247313215 | K30: 38.52473132 | L30: -20 | M30: 38 | N30: 38 | O30: 0 | P30: 3 | Q30: 38 | R30: 0
A31: 26 | D31: 20 | J31: 0.8742627683 | K31: 38.87426277 | L31: -20 | M31: 38 | N31: 38 | O31: 0 | P31: 3 | Q31: 38 | R31: 0
A32: 27 | D32: 20 | J32: 0.9323681128 | K32: 38.93236811 | L32: -20 | M32: 38 | N32: 38 | O32: 0 | P32: 3 | Q32: 38 | R32: 0
A33: 28 | D33: 20 | J33: 0.6368108625 | K33: 38.63681086 | L33: -20 | M33: 38 | N33: 38 | O33: 0 | P33: 3 | Q33: 38 | R33: 0
A34: 29 | D34: 20 | J34: 0.8615466549 | K34: 38.86154665 | L34: -20 | M34: 38 | N34: 38 | O34: 0 | P34: 3 | Q34: 38 | R34: 0
A35: 30 | D35: 20 | J35: 0.1706527693 | K35: 38.17065277 | L35: -20 | M35: 38 | N35: 38 | O35: 0 | P35: 3 | Q35: 38 | R35: 0
A36: 31 | D36: 20 | J36: 0.09301544333 | K36: 38.09301544 | L36: -20 | M36: 38 | N36: 38 | O36: 0 | P36: 3 | Q36: 38 | R36: 0
A37: 32 | D37: 20 | J37: 0.6485942425 | K37: 38.64859424 | L37: -20 | M37: 38 | N37: 38 | O37: 0 | P37: 3 | Q37: 38 | R37: 0
A38: 33 | D38: 20 | J38: 0.6817301608 | K38: 38.68173016 | L38: -20 | M38: 38 | N38: 38 | O38: 0 | P38: 3 | Q38: 38 | R38: 0
A39: 34 | D39: 20 | J39: 0.4521376361 | K39: 38.45213764 | L39: -20 | M39: 38 | N39: 38 | O39: 0 | P39: 3 | Q39: 38 | R39: 0
A40: 35 | D40: 20 | J40: 0.03834265157 | K40: 38.03834265 | L40: -20 | M40: 38 | N40: 38 | O40: 0 | P40: 3 | Q40: 38 | R40: 0
C41: Descansa
Q42: =SUM(Q6:Q25) -> 606 | R42: =SUM(R6:R25) -> 606 | S42: =SUM(S6:S25) -> 30 | T42: =SUM(T6:T25) -> 554 | U42: =SUM(U6:U25) -> 554 | W42: =SUM(W6:W25) -> 600 | X42: =SUM(X6:X25) -> 600 | Z42: =SUM(Z6:Z25) -> 408 | AA42: =SUM(AA6:AA25) -> 408 | AC42: =SUM(AC6:AC25) -> 506 | AD42: =SUM(AD6:AD25) -> 506 | AF42: =+Q42+T42+W42+Z42+AC42 -> 2674 | AG42: =+R42+U42+X42+AA42+AD42 -> 2674
Q43: =+Q6+Q7+Q8+Q12+Q16 -> 235 | R43: =+R6+R7+R8+R12+R16 -> 68 | T43: =+T6+T9+T10+T11+T13 -> 212 | U43: =+U6+U9+U10+U11+U13 -> 65 | W43: =+W7+W8+W11+W14+W18 -> 211 | X43: =+X7+X8+X11+X14+X18 -> 89 | Z43: =+Z6+Z7+Z10+Z14+Z13 -> 142 | AA43: =+AA6+AA7+AA10+AA14+AA13 -> 62 | AC43: =+AC6+AC8+AC12+AC13+AC20 -> 204 | AD43: =+AD6+AD8+AD12+AD13+AD20 -> 49 | AF43: =+Q43+T43+W43+Z43+AC43 -> 1004 | AG43: =+R43+U43+X43+AA43+AD43 -> 333
R44: =(Q43-R43)/5 -> 33.4 | U44: =(T43-U43)/5 -> 29.4 | X44: =(W43-X43)/5 -> 24.4 | AA44: =(Z43-AA43)/5 -> 16 | AD44: =(AC43-AD43)/5 -> 31 | AG44: =+AF43-AG43 -> 671
AE45: Resultat mitjà | AF45: =+AF43/25 -> 40.16 | AG45: =+AG43/25 -> 13.32
AF46: Diferència mitjana | AG46: =+AG44/25 -> 26.84
L48: CLASSIFICACIÓ | AE48: RONDA 6
C49: Jugador | E49: R 1 | F49: R 2 | G49: R 3 | H49: R 4 | I49: R 5 | J49: R 6 | L49: Premi | M49: Diferència | N49: Favor | O49: Contra
A50: =RANK(D50,D$50:D$69,0) -> 1 | D50: =+L50*1000+M50 -> 0 | L50: =+P50+S50+V50+Y50+AB50+AE50 -> 0 | M50: =+N50-O50 -> 0 | N50: =+Q50+T50+W50+Z50+AC50+AF50 -> 0 | O50: =+R50+U50+X50+AA50+AD50+AG50 -> 0
A51: 1 | D51: =+L51*1000+M51 -> 0 | L51: 0 | M51: 0 | N51: 0 | O51: 0
A52: 1 | D52: 0 | L52: 0 | M52: 0 | N52: 0 | O52: 0
A53: 1 | D53: 0 | L53: 0 | M53: 0 | N53: 0 | O53: 0
A54: 1 | D54: 0 | L54: 0 | M54: 0 | N54: 0 | O54: 0
A55: 1 | D55: 0 | L55: 0 | M55: 0 | N55: 0 | O55: 0
A56: 1 | D56: 0 | L56: 0 | M56: 0 | N56: 0 | O56: 0
A57: 1 | D57: 0 | L57: 0 | M57: 0 | N57: 0 | O57: 0
A58: 1 | D58: 0 | L58: 0 | M58: 0 | N58: 0 | O58: 0
A59: 1 | D59: 0 | L59: 0 | M59: 0 | N59: 0 | O59: 0
A60: 1 | D60: 0 | L60: 0 | M60: 0 | N60: 0 | O60: 0
A61: 1 | D61: 0 | L61: 0 | M61: 0 | N61: 0 | O61: 0
A62: 1 | D62: 0 | L62: 0 | M62: 0 | N62: 0 | O62: 0
A63: 1 | D63: 0 | L63: 0 | M63: 0 | N63: 0 | O63: 0
A64: 1 | D64: 0 | L64: 0 | M64: 0 | N64: 0 | O64: 0
A65: 1 | D65: 0 | L65: 0 | M65: 0 | N65: 0 | O65: 0
A66: 1 | D66: 0 | L66: 0 | M66: 0 | N66: 0 | O66: 0
A67: 1 | D67: 0 | L67: 0 | M67: 0 | N67: 0 | O67: 0
A68: 1 | D68: =+L68*1000+M68 -> 0 | L68: =+P68+S68+V68+Y68+AB68+AE68 -> 0 | M68: =+N68-O68 -> 0 | N68: =+Q68+T68+W68+Z68+AC68+AF68 -> 0 | O68: =+R68+U68+X68+AA68+AD68+AG68 -> 0
A69: 1 | D69: =+L69*1000+M69 -> 0 | L69: =+P69+S69+V69+Y69+AB69+AE69 -> 0 | M69: =+N69-O69 -> 0 | N69: =+Q69+T69+W69+Z69+AC69+AF69 -> 0 | O69: =+R69+U69+X69+AA69+AD69+AG69 -> 0

Sheet Resultats
A1: PARTIDES ST MAURE'15
A3: Taula | B3: Ronda | C3: EQUIPS | G3: Local | H3: Visitant | I3: Resultat
A4: 1 | B4: 1 | C4: 9 | D4: 15 | E4: 8 | F4: 13 | I4: 0-75
A5: 2 | B5: 1 | C5: 14 | D5: 17 | E5: 11 | F5: 5 | I5: 24-23
A6: 3 | B6: 1 | C6: 20 | D6: 3 | E6: 1 | F6: 16 | I6: 24-47
A7: 4 | B7: 1 | C7: 12 | D7: 18 | E7: 4 | F7: 10 | I7: 17-23
A8: 5 | B8: 1 | C8: 6 | D8: 7 | E8: 2 | F8: 19 | I8: 66-4
A9: 1 | B9: 2 | C9: 8 | D9: 6 | E9: 13 | F9: 7 | I9: 22-35
A10: 2 | B10: 2 | C10: 1 | D10: 4 | E10: 16 | F10: 10 | I10: 24-7
A11: 3 | B11: 2 | C11: 14 | D11: 5 | E11: 17 | F11: 11 | I11: 17-36
A12: 4 | B12: 2 | C12: 12 | D12: 3 | E12: 18 | F12: 20 | I12: 0-65
A13: 5 | B13: 2 | C13: 2 | D13: 15 | E13: 19 | F13: 9 | I13: 19-52
A14: 1 | B14: 3 | C14: 13 | D14: 1 | E14: 7 | F14: 4 | I14: 12-21
A15: 2 | B15: 3 | C15: 17 | D15: 18 | E15: 11 | F15: 8 | I15: 32-36
A16: 3 | B16: 3 | C16: 6 | D16: 20 | E16: 16 | F16: 14 | I16: 42-6
A17: 4 | B17: 3 | C17: 10 | D17: 19 | E17: 9 | F17: 5 | I17: 13-60
A18: 5 | B18: 3 | C18: 12 | D18: 2 | E18: 3 | F18: 15 | I18: 25-52
A19: 1 | B19: 4 | C19: 7 | D19: 1 | E19: 4 | F19: 13 | I19: 21-16
A20: 2 | B20: 4 | C20: 11 | D20: 6 | E20: 17 | F20: 20 | I20: 31-21
A21: 3 | B21: 4 | C21: 8 | D21: 9 | E21: 18 | F21: 5 | I21: 13-44
A22: 4 | B22: 4 | C22: 16 | D22: 3 | E22: 14 | F22: 19 | I22: 2-13
A23: 5 | B23: 4 | C23: 10 | D23: 2 | E23: 15 | F23: 12 | I23: 10-33
A24: 1 | B24: 5 | C24: 7 | D24: 11 | E24: 1 | F24: 6 | I24: 6-35
A25: 2 | B25: 5 | C25: 4 | D25: 18 | E25: 13 | F25: 17 | I25: 48-24
A26: 3 | B26: 5 | C26: 20 | D26: 5 | E26: 8 | F26: 15 | I26: 18-30
A27: 4 | B27: 5 | C27: 9 | D27: 14 | E27: 19 | F27: 12 | I27: 1-35
A28: 5 | B28: 5 | C28: 16 | D28: 2 | E28: 3 | F28: 10 | I28: 0-56
A29: FINAL | C29: 1 | D29: 6 | E29: 4 | F29: 7

Sheet Inscripcions
A2: SOPAR BOTIFARRA | E2: CAMPIONAT BOTIFARRA
B5: PARTICIPANTS | F5: PARTICIPANTS | J5: PARTICIPANTS
A7: 1
A8: 2
A9: 3
A10: 4
A11: 5
A12: 6
A13: 7
A14: 8
A15: 9
A16: 10
A17: 11
A18: 12
A19: 13
A20: 14
A21: 15
A22: 16

Sheet Control
B1: CONTROL
C3: 1 | D3: 2 | E3: 3 | F3: 4 | G3: 5 | H3: 6 | I3: 7 | J3: 8 | K3: 9 | L3: 10 | M3: 11 | N3: 12 | O3: 13 | P3: 14 | Q3: 15 | R3: 16 | S3: 17 | T3: 18 | U3: 19 | V3: 20 | W3: =+V3+1 -> 21 | X3: =+W3+1 -> 22 | Y3: 23 | Z3: 24 | AA3: 25 | AB3: 26 | AC3: 27 | AD3: 28 | AE3: 29 | AF3: 30 | AG3: 31
B4: 1
C5: 2
D6: 3
E7: 4
F8: 5
G9: 6
H10: 7
I11: 8
J12: 9
K13: 10
L14: 11
M15: 12
N16: 13
O17: 14
P18: 15
Q19: 16
R20: 17
S21: 18
T22: 19
U23: 20
V24: 21
W25: 22
X26: 23
Y27: 24
Z28: 25
AA29: 26
AB30: 27
AC31: 28
AD32: 29
AE33: 30
AF34: 31
AG35: 32

Sheet Quadre lliga
B2: CLASSIFICACIÓ CAMPIONAT BOTIFARRA'06
B5: nº | C5: Dif | D5: Punts | E5: nº | F5: Dif | G5: Punts | H5: nº | I5: Dif | J5: Punts | K5: nº | L5: Dif | M5: Punts | N5: nº | O5: Dif | P5: Punts | Q5: nº | R5: Dif | S5: Punts | T5: nº | U5: Dif | V5: Punts | W5: nº | X5: Dif | Y5: Punts | Z5: nº | AA5: Dif | AB5: Punts | AC5: nº | AD5: Dif | AE5: Punts | AF5: nº | AG5: Dif | AH5: Punts | AI5: nº | AJ5: Dif | AK5: Punts

Sheet Hoja1

Sheet Hoja2
A1: Companys | F1: Companys | J1: Companys | N1: Companys
A2: JUGADOR: | F2: JUGADOR: | J2: JUGADOR: | N2: JUGADOR:
A3: Mà | B3: Taula: | F3: Ronda | G3: COMPANY | J3: Ronda | K3: COMPANY | N3: Ronda | O3: COMPANY
A4: 1 | F4: 1 | J4: 1 | N4: 1
A5: 2 | F5: 2 | J5: 2 | N5: 2
A6: 3 | F6: 3 | J6: 3 | N6: 3
A7: 4 | F7: 4 | J7: 4 | N7: 4
A8: Total | F8: 6 | J8: 6 | N8: 6
A11: Companys | F11: Companys | J11: Companys | N11: Companys
A12: JUGADOR: | F12: JUGADOR: | J12: JUGADOR: | N12: JUGADOR:
A13: Ronda | C13: COMPANY | F13: Ronda | G13: COMPANY | J13: Ronda | K13: COMPANY | N13: Ronda | O13: COMPANY
A14: 1 | F14: 1 | J14: 1 | N14: 1
A15: 2 | F15: 2 | J15: 2 | N15: 2
A16: 3 | F16: 3 | J16: 3 | N16: 3
A17: 4 | F17: 4 | J17: 4 | N17: 4
A18: 5 | F18: 5 | J18: 5 | N18: 5
A19: 6 | F19: 6 | J19: 6 | N19: 6
A22: Companys BOTIFARRA'07
A23: JUGADOR NÚMERO:
A24: Ronda | C24: COMPANY
A25: 1
A26: 2
A27: 3
A28: 4
A29: 5
A30: 6

Sheet Taules
A1: TAULES BOTIFARRA'07
A3: Taula | B3: Ronda | C3: EQUIPS | D3: Local | E3: Visitant
